[Event "Titled Tuesday Blitz November 29 Late 2022"]
[White "Naroditsky, Daniel"]
[Black "Hjartarson, Johann"]
[WhiteFideId "2026961"]
[BlackFideId "2300044"]
[WhiteElo "2628"]
[BlackElo "2458"]
[Result "0-1"]
[Round "04"]
[TimeControl "180+1"]
[Date "2022.11.30"]
[WhiteClock "0:00:33"]
[BlackClock "0:00:13"]

1. e4 {[%clk 0:02:55]}  g6 {[%clk 0:02:58]} 2. d4 {[%clk 0:02:55]}  Bg7 {[%clk 0:02:59]} 3. Nc3 {[%clk 0:02:56]}  d6 {[%clk 0:02:59]} 4. h4 {[%clk 0:02:55]}  Nf6 {[%clk 0:02:57]} 5. h5 {[%clk 0:02:56]}  Nxh5 {[%clk 0:02:57]} 6. Be2 {[%clk 0:02:53]}  Nf6 {[%clk 0:02:55]} 7. Bh6 {[%clk 0:02:54]}  Bxh6 {[%clk 0:02:53]} 8. Rxh6 {[%clk 0:02:55]}  c6 {[%clk 0:02:50]} 9. Qd2 {[%clk 0:02:52]}  Nbd7 {[%clk 0:02:48]} 10. Nf3 {[%clk 0:02:50]}  e5 {[%clk 0:02:46]} 11. O-O-O {[%clk 0:02:49]}  Qe7 {[%clk 0:02:45]} 12. Kb1 {[%clk 0:02:47]}  Ng4 {[%clk 0:02:29]} 13. Rh4 {[%clk 0:02:45]}  h5 {[%clk 0:02:28]} 14. Ng5 {[%clk 0:02:35]}  exd4 {[%clk 0:02:12]} 15. Qxd4 {[%clk 0:02:34]}  O-O {[%clk 0:02:01]} 16. f4 {[%clk 0:02:26]}  Nc5 {[%clk 0:01:44]} 17. Rdh1 {[%clk 0:02:02]}  f6 {[%clk 0:01:40]} 18. Nf3 {[%clk 0:01:55]}  Ne6 {[%clk 0:01:34]} 19. Qd2 {[%clk 0:01:50]}  Kg7 {[%clk 0:01:30]} 20. f5 {[%clk 0:01:49]}  Ng5 {[%clk 0:01:18]} 21. fxg6 {[%clk 0:01:50]}  Rh8 {[%clk 0:01:04]} 22. Nd4 {[%clk 0:01:50]}  Nxe4 {[%clk 0:01:00]} 23. Nxe4 {[%clk 0:01:46]}  Qxe4 {[%clk 0:00:59]} 24. Bf3 {[%clk 0:01:30]}  Qe3 {[%clk 0:00:58]} 25. Qd1 {[%clk 0:01:23]}  Nf2 {[%clk 0:00:54]} 26. Qg1 {[%clk 0:01:24]}  Re8 {[%clk 0:00:47]} 27. Ne2 {[%clk 0:01:02]}  Nxh1 {[%clk 0:00:46]} 28. Qxh1 {[%clk 0:01:02]}  Bf5 {[%clk 0:00:37]} 29. Bxh5 {[%clk 0:00:49]}  Qd2 {[%clk 0:00:35]} 30. Bf3 {[%clk 0:00:41]}  Bxg6 {[%clk 0:00:34]} 31. Qc1 {[%clk 0:00:38]}  Rxe2 {[%clk 0:00:28]} 32. Bxe2 {[%clk 0:00:39]}  Qxe2 {[%clk 0:00:28]} 33. a4 {[%clk 0:00:39]}  Re8 {[%clk 0:00:26]} 34. Rh1 {[%clk 0:00:40]}  Re5 {[%clk 0:00:20]} 35. g4 {[%clk 0:00:37]}  Rc5 {[%clk 0:00:18]} 36. Ka1 {[%clk 0:00:35]}  Qxc2 {[%clk 0:00:17]} 37. Qf4 {[%clk 0:00:35]}  Rc4 {[%clk 0:00:15]} 38. Qh6+ {[%clk 0:00:34]}  Kf7 {[%clk 0:00:14]} 39. b3 {[%clk 0:00:33]}  Qxb3 {[%clk 0:00:13]} 0-1


[Site "https://www.chess.com"]

[Event "Titled Tuesday Blitz November 29 Late 2022"]
[White "Nasuta, Grzegorz"]
[Black "Graif, William"]
[WhiteFideId "1141686"]
[BlackFideId "2609835"]
[WhiteElo "2440"]
[BlackElo "2205"]
[Result "1-0"]
[Round "04"]
[TimeControl "180+1"]
[Date "2022.11.30"]
[WhiteClock "0:00:10"]
[BlackClock "0:00:01"]

1. e4 {[%clk 0:03:00]}  e5 {[%clk 0:01:46]} 2. Nf3 {[%clk 0:03:00]}  Bc5 {[%clk 0:01:44]} 3. Nxe5 {[%clk 0:02:35]}  Nc6 {[%clk 0:01:43]} 4. Nxc6 {[%clk 0:02:34]}  dxc6 {[%clk 0:01:44]} 5. d3 {[%clk 0:02:33]}  Nf6 {[%clk 0:01:40]} 6. f3 {[%clk 0:02:33]}  Nh5 {[%clk 0:01:03]} 7. g3 {[%clk 0:02:34]}  f5 {[%clk 0:01:03]} 8. Qe2 {[%clk 0:02:29]}  O-O {[%clk 0:00:59]} 9. Nc3 {[%clk 0:02:23]}  f4 {[%clk 0:00:48]} 10. Qg2 {[%clk 0:02:23]}  Bd6 {[%clk 0:00:40]} 11. Ne2 {[%clk 0:02:07]}  Be5 {[%clk 0:00:27]} 12. g4 {[%clk 0:01:59]}  Nf6 {[%clk 0:00:20]} 13. Qf2 {[%clk 0:01:47]}  Qd6 {[%clk 0:00:19]} 14. d4 {[%clk 0:01:46]}  Bxg4 {[%clk 0:00:18]} 15. dxe5 {[%clk 0:01:45]}  Qxe5 {[%clk 0:00:17]} 16. Qd4 {[%clk 0:01:34]}  Qh5 {[%clk 0:00:15]} 17. Nxf4 {[%clk 0:01:28]}  Qh4+ {[%clk 0:00:14]} 18. Qf2 {[%clk 0:01:28]}  Qg5 {[%clk 0:00:13]} 19. Bc4+ {[%clk 0:00:59]}  Kh8 {[%clk 0:00:12]} 20. Ne6 {[%clk 0:00:55]}  Qe5 {[%clk 0:00:11]} 21. Nxf8 {[%clk 0:00:55]}  Rxf8 {[%clk 0:00:09]} 22. Bd3 {[%clk 0:00:33]}  Nd5 {[%clk 0:00:07]} 23. Qg3 {[%clk 0:00:29]}  Qd4 {[%clk 0:00:03]} 24. Qxg4 {[%clk 0:00:26]}  Ne3 {[%clk 0:00:02]} 25. Qg5 {[%clk 0:00:13]}  Rxf3 {[%clk 0:00:01]} 26. Bxe3 {[%clk 0:00:10]}  Rxe3+ {[%clk 0:00:01]} 27. Kd2 {[%clk 0:00:10]} 1-0


[Site "https://www.chess.com"]

[Event "Titled Tuesday Blitz November 29 Late 2022"]
[White "Pakleza, Zbigniew"]
[Black "Pranav, V"]
[WhiteFideId "1119290"]
[BlackFideId "25060783"]
[WhiteElo "2411"]
[BlackElo "2430"]
[Result "1/2-1/2"]
[Round "04"]
[TimeControl "180+1"]
[Date "2022.11.30"]
[WhiteClock "0:00:04"]
[BlackClock "0:00:39"]

1. d4 {[%clk 0:03:00]}  d5 {[%clk 0:02:56]} 2. Bf4 {[%clk 0:02:59]}  Nf6 {[%clk 0:02:56]} 3. e3 {[%clk 0:02:59]}  c5 {[%clk 0:02:56]} 4. c3 {[%clk 0:02:59]}  Nc6 {[%clk 0:02:56]} 5. Nd2 {[%clk 0:02:58]}  Bg4 {[%clk 0:02:56]} 6. Ngf3 {[%clk 0:02:52]}  e6 {[%clk 0:02:55]} 7. h3 {[%clk 0:02:51]}  Bh5 {[%clk 0:02:53]} 8. Be2 {[%clk 0:02:40]}  Be7 {[%clk 0:02:49]} 9. O-O {[%clk 0:02:34]}  O-O {[%clk 0:02:48]} 10. Ne5 {[%clk 0:02:21]}  Bg6 {[%clk 0:02:41]} 11. Nxg6 {[%clk 0:02:18]}  hxg6 {[%clk 0:02:41]} 12. Qb3 {[%clk 0:02:13]}  Na5 {[%clk 0:02:37]} 13. Qc2 {[%clk 0:02:05]}  cxd4 {[%clk 0:02:33]} 14. cxd4 {[%clk 0:01:56]}  Rc8 {[%clk 0:02:33]} 15. Qa4 {[%clk 0:01:37]}  a6 {[%clk 0:02:16]} 16. Rfc1 {[%clk 0:01:37]}  Rxc1+ {[%clk 0:02:10]} 17. Rxc1 {[%clk 0:01:36]}  b5 {[%clk 0:02:08]} 18. Qc2 {[%clk 0:01:24]}  Nc4 {[%clk 0:02:04]} 19. b3 {[%clk 0:01:24]}  Nxd2 {[%clk 0:02:03]} 20. Qxd2 {[%clk 0:01:24]}  Bd6 {[%clk 0:02:03]} 21. Bxd6 {[%clk 0:01:15]}  Qxd6 {[%clk 0:02:04]} 22. Bd3 {[%clk 0:01:14]}  Qa3 {[%clk 0:01:58]} 23. Rc6 {[%clk 0:01:04]}  Re8 {[%clk 0:01:46]} 24. g3 {[%clk 0:00:58]}  Ra8 {[%clk 0:01:33]} 25. Kg2 {[%clk 0:00:54]}  Nd7 {[%clk 0:01:21]} 26. Qc2 {[%clk 0:00:49]}  Nf6 {[%clk 0:01:14]} 27. g4 {[%clk 0:00:40]}  Qb4 {[%clk 0:01:09]} 28. g5 {[%clk 0:00:37]}  Nd7 {[%clk 0:00:59]} 29. Rc8+ {[%clk 0:00:29]}  Rxc8 {[%clk 0:00:51]} 30. Qxc8+ {[%clk 0:00:29]}  Nf8 {[%clk 0:00:51]} 31. Qxa6 {[%clk 0:00:30]}  Qe7 {[%clk 0:00:51]} 32. Qxb5 {[%clk 0:00:22]}  Qxg5+ {[%clk 0:00:51]} 33. Kf1 {[%clk 0:00:23]}  Qh5 {[%clk 0:00:52]} 34. a4 {[%clk 0:00:19]}  e5 {[%clk 0:00:44]} 35. dxe5 {[%clk 0:00:13]}  Qxh3+ {[%clk 0:00:41]} 36. Ke1 {[%clk 0:00:11]}  Qh1+ {[%clk 0:00:41]} 37. Bf1 {[%clk 0:00:11]}  Qe4 {[%clk 0:00:40]} 38. Qd3 {[%clk 0:00:08]}  Qxe5 {[%clk 0:00:40]} 39. Qd4 {[%clk 0:00:06]}  Qc7 {[%clk 0:00:39]} 40. Qxd5 {[%clk 0:00:04]}  Qc3+ {[%clk 0:00:39]} 41. Ke2 {[%clk 0:00:04]}  Ne6 {[%clk 0:00:39]} 42. a5 {[%clk 0:00:03]}  Nc5 {[%clk 0:00:38]} 43. Qd8+ {[%clk 0:00:03]}  Kh7 {[%clk 0:00:38]} 44. Qh4+ {[%clk 0:00:03]}  Kg8 {[%clk 0:00:39]} 45. Qd8+ {[%clk 0:00:04]}  Kh7 {[%clk 0:00:39]} 46. Qh4+ {[%clk 0:00:04]}  Kg8 {[%clk 0:00:39]} 47. Qd8+ {[%clk 0:00:04]} 1/2-1/2


[Site "https://www.chess.com"]

[Event "Titled Tuesday Blitz November 29 Late 2022"]
[White "Papasimakopoulos, Alexandros"]
[Black "Nakamura, Hikaru"]
[WhiteFideId "4244125"]
[BlackFideId "2016192"]
[WhiteElo "2365"]
[BlackElo "2909"]
[Result "1/2-1/2"]
[Round "04"]
[TimeControl "180+1"]
[Date "2022.11.30"]
[WhiteClock "0:00:03"]
[BlackClock "0:00:17"]

1. d4 {[%clk 0:02:57]}  g6 {[%clk 0:03:00]} 2. c4 {[%clk 0:02:57]}  Bg7 {[%clk 0:03:00]} 3. e4 {[%clk 0:02:55]}  d6 {[%clk 0:03:00]} 4. Nc3 {[%clk 0:02:54]}  Nd7 {[%clk 0:03:00]} 5. Nge2 {[%clk 0:02:55]}  e5 {[%clk 0:02:59]} 6. Be3 {[%clk 0:02:54]}  Ne7 {[%clk 0:02:59]} 7. Qd2 {[%clk 0:02:53]}  exd4 {[%clk 0:02:55]} 8. Bxd4 {[%clk 0:02:52]}  Nf6 {[%clk 0:02:55]} 9. f3 {[%clk 0:02:51]}  O-O {[%clk 0:02:49]} 10. h4 {[%clk 0:02:49]}  a6 {[%clk 0:02:48]} 11. h5 {[%clk 0:02:34]}  b5 {[%clk 0:02:46]} 12. g4 {[%clk 0:02:15]}  c5 {[%clk 0:02:43]} 13. Be3 {[%clk 0:02:05]}  Nc6 {[%clk 0:02:41]} 14. O-O-O {[%clk 0:01:57]}  Ne5 {[%clk 0:02:42]} 15. Nf4 {[%clk 0:01:55]}  Nxf3 {[%clk 0:02:41]} 16. Qxd6 {[%clk 0:01:49]}  Qxd6 {[%clk 0:02:37]} 17. Rxd6 {[%clk 0:01:49]}  Nxg4 {[%clk 0:02:38]} 18. Bxc5 {[%clk 0:01:47]}  Be5 {[%clk 0:02:32]} 19. Nfd5 {[%clk 0:01:38]}  Bxd6 {[%clk 0:02:00]} 20. Bxd6 {[%clk 0:01:38]}  Nf2 {[%clk 0:01:49]} 21. hxg6 {[%clk 0:01:14]}  Nxh1 {[%clk 0:01:49]} 22. gxh7+ {[%clk 0:01:12]}  Kxh7 {[%clk 0:01:50]} 23. Bxf8 {[%clk 0:01:12]}  Nf2 {[%clk 0:01:45]} 24. Bc5 {[%clk 0:01:01]}  Ng4 {[%clk 0:01:42]} 25. cxb5 {[%clk 0:01:00]}  axb5 {[%clk 0:01:43]} 26. Bxb5 {[%clk 0:00:52]}  Bb7 {[%clk 0:01:42]} 27. a4 {[%clk 0:00:47]}  Nge5 {[%clk 0:01:42]} 28. b4 {[%clk 0:00:40]}  Ng5 {[%clk 0:01:26]} 29. a5 {[%clk 0:00:35]}  Kg6 {[%clk 0:01:23]} 30. a6 {[%clk 0:00:20]}  Bxa6 {[%clk 0:01:20]} 31. Nc7 {[%clk 0:00:20]}  Bxb5 {[%clk 0:01:17]} 32. Nxa8 {[%clk 0:00:20]}  Bf1 {[%clk 0:01:13]} 33. Nc7 {[%clk 0:00:19]}  Ngf3 {[%clk 0:01:13]} 34. N7d5 {[%clk 0:00:18]}  Bc4 {[%clk 0:01:10]} 35. Ne3 {[%clk 0:00:15]}  Be6 {[%clk 0:01:09]} 36. Kc2 {[%clk 0:00:14]}  Ne1+ {[%clk 0:01:06]} 37. Kd2 {[%clk 0:00:14]}  N1f3+ {[%clk 0:01:06]} 38. Kc2 {[%clk 0:00:14]}  Nd7 {[%clk 0:01:05]} 39. Bd6 {[%clk 0:00:13]}  Bh3 {[%clk 0:01:03]} 40. b5 {[%clk 0:00:13]}  Kf6 {[%clk 0:01:03]} 41. Bc7 {[%clk 0:00:11]}  Nc5 {[%clk 0:01:00]} 42. Ncd5+ {[%clk 0:00:11]}  Kg7 {[%clk 0:00:59]} 43. Nf5+ {[%clk 0:00:10]}  Kh7 {[%clk 0:00:58]} 44. Nd6 {[%clk 0:00:09]}  Ne5 {[%clk 0:00:45]} 45. b6 {[%clk 0:00:09]}  Bg2 {[%clk 0:00:42]} 46. Kb2 {[%clk 0:00:07]}  Kg6 {[%clk 0:00:35]} 47. Nf4+ {[%clk 0:00:07]}  Kf6 {[%clk 0:00:34]} 48. Nxg2 {[%clk 0:00:08]}  Ke6 {[%clk 0:00:35]} 49. Nf4+ {[%clk 0:00:08]}  Kd7 {[%clk 0:00:35]} 50. Kc3 {[%clk 0:00:07]}  Kc6 {[%clk 0:00:33]} 51. Kd4 {[%clk 0:00:08]}  Nf3+ {[%clk 0:00:33]} 52. Ke3 {[%clk 0:00:08]}  Ne5 {[%clk 0:00:31]} 53. Nd5 {[%clk 0:00:08]}  Ng4+ {[%clk 0:00:24]} 54. Kf4 {[%clk 0:00:08]}  Nf2 {[%clk 0:00:25]} 55. Nf5 {[%clk 0:00:08]}  Nfxe4 {[%clk 0:00:25]} 56. Nb4+ {[%clk 0:00:07]}  Kb7 {[%clk 0:00:23]} 57. Nd3 {[%clk 0:00:07]}  Kc6 {[%clk 0:00:15]} 58. Nd4+ {[%clk 0:00:03]}  Kd5 {[%clk 0:00:16]} 59. Nxc5 {[%clk 0:00:03]}  Nxc5 {[%clk 0:00:16]} 60. Nb5 {[%clk 0:00:03]}  Kc6 {[%clk 0:00:16]} 61. Nd6 {[%clk 0:00:04]}  Ne6+ {[%clk 0:00:15]} 62. Ke5 {[%clk 0:00:04]}  Nxc7 {[%clk 0:00:16]} 63. bxc7 {[%clk 0:00:02]}  Kxc7 {[%clk 0:00:17]} 64. Kf6 {[%clk 0:00:02]}  Kxd6 {[%clk 0:00:17]} 65. Kxf7 {[%clk 0:00:03]} 1/2-1/2


[Site "https://www.chess.com"]

[Event "Titled Tuesday Blitz November 29 Late 2022"]
[White "Paravyan, David"]
[Black "Espinosa, Pedro"]
[WhiteFideId "4194985"]
[BlackFideId "30921066"]
[WhiteElo "2546"]
[BlackElo "2016"]
[Result "1-0"]
[Round "04"]
[TimeControl "180+1"]
[Date "2022.11.30"]
[WhiteClock "0:01:17"]
[BlackClock "0:00:05"]

1. e4 {[%clk 0:03:00]}  c5 {[%clk 0:02:59]} 2. Nf3 {[%clk 0:03:00]}  d6 {[%clk 0:02:59]} 3. d4 {[%clk 0:03:00]}  cxd4 {[%clk 0:03:00]} 4. Nxd4 {[%clk 0:03:01]}  Nf6 {[%clk 0:03:00]} 5. Nc3 {[%clk 0:03:01]}  Nc6 {[%clk 0:03:00]} 6. Bg5 {[%clk 0:03:02]}  e6 {[%clk 0:03:01]} 7. Qd3 {[%clk 0:03:01]}  Be7 {[%clk 0:02:59]} 8. O-O-O {[%clk 0:03:00]}  O-O {[%clk 0:02:53]} 9. Be2 {[%clk 0:03:00]}  Qb6 {[%clk 0:02:45]} 10. Be3 {[%clk 0:02:47]}  Ne5 {[%clk 0:02:24]} 11. Qd2 {[%clk 0:02:45]}  Neg4 {[%clk 0:02:18]} 12. Nf5 {[%clk 0:02:42]}  Qd8 {[%clk 0:02:05]} 13. Nxe7+ {[%clk 0:02:40]}  Qxe7 {[%clk 0:02:06]} 14. Bxg4 {[%clk 0:02:28]}  Nxg4 {[%clk 0:02:07]} 15. Qxd6 {[%clk 0:02:28]}  Qf6 {[%clk 0:01:26]} 16. Bc5 {[%clk 0:02:19]}  Re8 {[%clk 0:01:23]} 17. f3 {[%clk 0:02:18]}  Ne5 {[%clk 0:01:13]} 18. Kb1 {[%clk 0:02:15]}  Nc4 {[%clk 0:00:58]} 19. Qd4 {[%clk 0:02:08]}  Qxd4 {[%clk 0:00:56]} 20. Bxd4 {[%clk 0:02:07]}  a6 {[%clk 0:00:54]} 21. b3 {[%clk 0:02:05]}  Na5 {[%clk 0:00:51]} 22. Na4 {[%clk 0:02:04]}  b5 {[%clk 0:00:43]} 23. Nb6 {[%clk 0:02:03]}  Rb8 {[%clk 0:00:42]} 24. Kb2 {[%clk 0:02:02]}  Nc6 {[%clk 0:00:42]} 25. Bf2 {[%clk 0:02:00]}  f6 {[%clk 0:00:33]} 26. Rd6 {[%clk 0:01:36]}  Bb7 {[%clk 0:00:30]} 27. Nd7 {[%clk 0:01:33]}  Rbd8 {[%clk 0:00:27]} 28. Bb6 {[%clk 0:01:34]}  Rc8 {[%clk 0:00:23]} 29. Nc5 {[%clk 0:01:34]}  Ba8 {[%clk 0:00:12]} 30. Nxa6 {[%clk 0:01:32]}  Ne5 {[%clk 0:00:09]} 31. Nb4 {[%clk 0:01:32]}  Nf7 {[%clk 0:00:08]} 32. Rd2 {[%clk 0:01:32]}  Rb8 {[%clk 0:00:08]} 33. Bf2 {[%clk 0:01:32]}  Rec8 {[%clk 0:00:09]} 34. Rhd1 {[%clk 0:01:32]}  Rb7 {[%clk 0:00:07]} 35. Rd7 {[%clk 0:01:24]}  Rxd7 {[%clk 0:00:06]} 36. Rxd7 {[%clk 0:01:25]}  f5 {[%clk 0:00:07]} 37. exf5 {[%clk 0:01:24]}  exf5 {[%clk 0:00:08]} 38. Bd4 {[%clk 0:01:25]}  Bc6 {[%clk 0:00:06]} 39. Nxc6 {[%clk 0:01:23]}  Rxc6 {[%clk 0:00:06]} 40. Rb7 {[%clk 0:01:23]}  Nd6 {[%clk 0:00:06]} 41. Rxg7+ {[%clk 0:01:24]}  Kf8 {[%clk 0:00:06]} 42. Rxh7 {[%clk 0:01:24]}  f4 {[%clk 0:00:04]} 43. c3 {[%clk 0:01:20]}  b4 {[%clk 0:00:03]} 44. cxb4 {[%clk 0:01:19]}  Nb5 {[%clk 0:00:03]} 45. Bc5+ {[%clk 0:01:20]}  Kg8 {[%clk 0:00:03]} 46. Rd7 {[%clk 0:01:20]}  Re6 {[%clk 0:00:03]} 47. Rd2 {[%clk 0:01:20]}  Nc7 {[%clk 0:00:03]} 48. a4 {[%clk 0:01:20]}  Ne8 {[%clk 0:00:04]} 49. a5 {[%clk 0:01:20]}  Nf6 {[%clk 0:00:04]} 50. Ka3 {[%clk 0:01:17]}  Ne4 {[%clk 0:00:05]} 51. fxe4 {[%clk 0:01:17]}  Rxe4 {[%clk 0:00:05]} 52. Rf2 {[%clk 0:01:17]}  Re2 {[%clk 0:00:05]} 53. Rxe2 {[%clk 0:01:17]} 1-0


[Site "https://www.chess.com"]

[Event "Titled Tuesday Blitz November 29 Late 2022"]
[White "Pinheiro, Iung Alicio de O."]
[Black "Miller, Luke C"]
[WhiteFideId "2104350"]
[BlackFideId "2096935"]
[WhiteElo "2283"]
[BlackElo "2397"]
[Result "1-0"]
[Round "04"]
[TimeControl "180+1"]
[Date "2022.11.30"]
[WhiteClock "0:00:08"]
[BlackClock "0:00:05"]

1. e4 {[%clk 0:02:58]}  c5 {[%clk 0:02:58]} 2. Nf3 {[%clk 0:02:57]}  d6 {[%clk 0:02:59]} 3. Bc4 {[%clk 0:02:54]}  Nf6 {[%clk 0:02:58]} 4. d3 {[%clk 0:02:52]}  g6 {[%clk 0:02:58]} 5. O-O {[%clk 0:02:52]}  Bg7 {[%clk 0:02:59]} 6. Re1 {[%clk 0:02:50]}  O-O {[%clk 0:02:59]} 7. c3 {[%clk 0:02:50]}  Nc6 {[%clk 0:02:59]} 8. Bb3 {[%clk 0:02:49]}  Rb8 {[%clk 0:02:58]} 9. d4 {[%clk 0:02:39]}  e5 {[%clk 0:02:56]} 10. dxc5 {[%clk 0:02:34]}  dxc5 {[%clk 0:02:54]} 11. Qxd8 {[%clk 0:02:35]}  Rxd8 {[%clk 0:02:54]} 12. Bg5 {[%clk 0:02:36]}  h6 {[%clk 0:02:50]} 13. Bxf6 {[%clk 0:02:36]}  Bxf6 {[%clk 0:02:51]} 14. Nbd2 {[%clk 0:02:36]}  b5 {[%clk 0:02:48]} 15. Bd5 {[%clk 0:02:34]}  Ne7 {[%clk 0:02:45]} 16. c4 {[%clk 0:02:33]}  bxc4 {[%clk 0:02:42]} 17. Bxc4 {[%clk 0:02:13]}  Rxb2 {[%clk 0:02:34]} 18. Nb3 {[%clk 0:02:13]}  Bg4 {[%clk 0:02:19]} 19. Re3 {[%clk 0:02:04]}  Kg7 {[%clk 0:02:06]} 20. Ne1 {[%clk 0:01:51]}  Nc6 {[%clk 0:01:06]} 21. Nxc5 {[%clk 0:01:00]}  Nd4 {[%clk 0:00:57]} 22. Nb3 {[%clk 0:00:45]}  Nc2 {[%clk 0:00:47]} 23. Nxc2 {[%clk 0:00:45]}  Rxc2 {[%clk 0:00:48]} 24. Bd5 {[%clk 0:00:44]}  Bg5 {[%clk 0:00:32]} 25. Rg3 {[%clk 0:00:41]}  Be2 {[%clk 0:00:27]} 26. Na5 {[%clk 0:00:17]}  Rb8 {[%clk 0:00:14]} 27. Rb3 {[%clk 0:00:16]}  Rbc8 {[%clk 0:00:15]} 28. h3 {[%clk 0:00:11]}  Bf4 {[%clk 0:00:14]} 29. g3 {[%clk 0:00:10]}  Bd2 {[%clk 0:00:14]} 30. Nc6 {[%clk 0:00:08]}  R8xc6 {[%clk 0:00:11]} 31. Bxc6 {[%clk 0:00:09]}  Rxc6 {[%clk 0:00:11]} 32. Rb2 {[%clk 0:00:09]}  Bc3 {[%clk 0:00:11]} 33. Rc1 {[%clk 0:00:07]}  Bxb2 {[%clk 0:00:10]} 34. Rxc6 {[%clk 0:00:08]}  a5 {[%clk 0:00:07]} 35. Rc2 {[%clk 0:00:07]}  Bf3 {[%clk 0:00:05]} 36. Rxb2 {[%clk 0:00:07]}  Bxe4 {[%clk 0:00:06]} 37. Rb5 {[%clk 0:00:08]}  a4 {[%clk 0:00:05]} 38. Rxe5 {[%clk 0:00:08]} 1-0


[Site "https://www.chess.com"]

[Event "Titled Tuesday Blitz November 29 Late 2022"]
[White "Preotu, Razvan"]
[Black "Martinez Reyes, Pedro Ramon"]
[WhiteFideId "2613280"]
[BlackFideId "3901807"]
[WhiteElo "2407"]
[BlackElo "2354"]
[Result "1/2-1/2"]
[Round "04"]
[TimeControl "180+1"]
[Date "2022.11.30"]
[WhiteClock "0:00:06"]
[BlackClock "0:00:10"]

1. e4 {[%clk 0:03:00]}  c6 {[%clk 0:02:57]} 2. Nc3 {[%clk 0:03:00]}  d5 {[%clk 0:02:55]} 3. Nf3 {[%clk 0:03:01]}  Bg4 {[%clk 0:02:47]} 4. h3 {[%clk 0:03:00]}  Bxf3 {[%clk 0:02:47]} 5. Qxf3 {[%clk 0:03:00]}  e6 {[%clk 0:02:47]} 6. Be2 {[%clk 0:03:01]}  Nd7 {[%clk 0:02:45]} 7. d4 {[%clk 0:02:59]}  dxe4 {[%clk 0:02:45]} 8. Nxe4 {[%clk 0:03:00]}  Ngf6 {[%clk 0:02:46]} 9. c3 {[%clk 0:02:58]}  Nxe4 {[%clk 0:02:42]} 10. Qxe4 {[%clk 0:02:59]}  Bd6 {[%clk 0:02:40]} 11. O-O {[%clk 0:02:57]}  O-O {[%clk 0:02:39]} 12. Bf3 {[%clk 0:02:54]}  Qc7 {[%clk 0:02:35]} 13. g3 {[%clk 0:02:53]}  a5 {[%clk 0:02:29]} 14. a4 {[%clk 0:02:47]}  Rfe8 {[%clk 0:02:26]} 15. Bg2 {[%clk 0:02:47]}  e5 {[%clk 0:02:23]} 16. dxe5 {[%clk 0:02:45]}  Bxe5 {[%clk 0:02:17]} 17. Qc2 {[%clk 0:02:37]}  Rad8 {[%clk 0:02:16]} 18. Bd2 {[%clk 0:02:29]}  Nf6 {[%clk 0:02:04]} 19. Rad1 {[%clk 0:02:29]}  h6 {[%clk 0:01:53]} 20. Rfe1 {[%clk 0:02:25]}  Bd6 {[%clk 0:01:50]} 21. Rxe8+ {[%clk 0:02:13]}  Rxe8 {[%clk 0:01:49]} 22. Qd3 {[%clk 0:02:12]}  Bc5 {[%clk 0:01:44]} 23. b4 {[%clk 0:02:00]}  Rd8 {[%clk 0:01:27]} 24. Qe2 {[%clk 0:01:59]}  Bd6 {[%clk 0:01:02]} 25. Be1 {[%clk 0:01:31]}  Re8 {[%clk 0:00:58]} 26. Qd3 {[%clk 0:01:29]}  Be7 {[%clk 0:00:51]} 27. Qf5 {[%clk 0:01:15]}  axb4 {[%clk 0:00:29]} 28. cxb4 {[%clk 0:01:16]}  Rd8 {[%clk 0:00:29]} 29. Rb1 {[%clk 0:01:13]}  Qd7 {[%clk 0:00:17]} 30. Qxd7 {[%clk 0:01:11]}  Rxd7 {[%clk 0:00:17]} 31. b5 {[%clk 0:01:11]}  Nd5 {[%clk 0:00:08]} 32. bxc6 {[%clk 0:01:09]}  bxc6 {[%clk 0:00:08]} 33. a5 {[%clk 0:01:09]}  Bc5 {[%clk 0:00:06]} 34. Rc1 {[%clk 0:01:08]}  Bb4 {[%clk 0:00:02]} 35. Bxd5 {[%clk 0:01:08]}  Bxe1 {[%clk 0:00:01]} 36. Bxf7+ {[%clk 0:00:42]}  Kxf7 {[%clk 0:00:02]} 37. Rxe1 {[%clk 0:00:41]}  Ra7 {[%clk 0:00:02]} 38. Ra1 {[%clk 0:00:42]}  Ra6 {[%clk 0:00:02]} 39. f4 {[%clk 0:00:41]}  c5 {[%clk 0:00:03]} 40. Kf2 {[%clk 0:00:41]}  Ke6 {[%clk 0:00:04]} 41. Ke3 {[%clk 0:00:41]}  Kd5 {[%clk 0:00:05]} 42. g4 {[%clk 0:00:42]}  c4 {[%clk 0:00:05]} 43. f5 {[%clk 0:00:40]}  Kc5 {[%clk 0:00:06]} 44. h4 {[%clk 0:00:40]}  Kb4 {[%clk 0:00:05]} 45. g5 {[%clk 0:00:40]}  hxg5 {[%clk 0:00:05]} 46. hxg5 {[%clk 0:00:41]}  c3 {[%clk 0:00:05]} 47. Kd3 {[%clk 0:00:40]}  Rd6+ {[%clk 0:00:03]} 48. Kc2 {[%clk 0:00:40]}  Rd2+ {[%clk 0:00:04]} 49. Kc1 {[%clk 0:00:39]}  Rh2 {[%clk 0:00:04]} 50. Rb1+ {[%clk 0:00:36]}  Kc4 {[%clk 0:00:04]} 51. Rb7 {[%clk 0:00:32]}  Rh1+ {[%clk 0:00:05]} 52. Kc2 {[%clk 0:00:32]}  Rh2+ {[%clk 0:00:05]} 53. Kb1 {[%clk 0:00:33]}  Rh1+ {[%clk 0:00:05]} 54. Kc2 {[%clk 0:00:17]}  Rh2+ {[%clk 0:00:06]} 55. Kd1 {[%clk 0:00:18]}  Rh1+ {[%clk 0:00:06]} 56. Ke2 {[%clk 0:00:14]}  Rh2+ {[%clk 0:00:06]} 57. Kf3 {[%clk 0:00:13]}  c2 {[%clk 0:00:07]} 58. Rc7+ {[%clk 0:00:13]}  Kb5 {[%clk 0:00:07]} 59. f6 {[%clk 0:00:11]}  gxf6 {[%clk 0:00:08]} 60. gxf6 {[%clk 0:00:11]}  Rh6 {[%clk 0:00:08]} 61. Rxc2 {[%clk 0:00:04]}  Rxf6+ {[%clk 0:00:08]} 62. Ke4 {[%clk 0:00:05]}  Kxa5 {[%clk 0:00:09]} 63. Rd2 {[%clk 0:00:05]}  Rc6 {[%clk 0:00:08]} 64. Rd5+ {[%clk 0:00:05]}  Kb6 {[%clk 0:00:09]} 65. Ke5 {[%clk 0:00:05]}  Rc5 {[%clk 0:00:09]} 66. Rxc5 {[%clk 0:00:06]}  Kxc5 {[%clk 0:00:10]} 1/2-1/2


[Site "https://www.chess.com"]

[Event "Titled Tuesday Blitz November 29 Late 2022"]
[White "Putnam, Liam"]
[Black "Ilkhomi, Jaloliddin"]
[WhiteFideId "30938279"]
[BlackFideId "14700948"]
[WhiteElo "2082"]
[BlackElo "2045"]
[Result "1-0"]
[Round "04"]
[TimeControl "180+1"]
[Date "2022.11.30"]
[WhiteClock "0:00:25"]
[BlackClock "0:00:17"]

1. d4 {[%clk 0:03:00]}  Nf6 {[%clk 0:02:59]} 2. c4 {[%clk 0:03:01]}  e6 {[%clk 0:03:00]} 3. Bf4 {[%clk 0:02:54]}  Bb4+ {[%clk 0:02:57]} 4. Nd2 {[%clk 0:02:51]}  O-O {[%clk 0:02:53]} 5. a3 {[%clk 0:02:48]}  Bd6 {[%clk 0:02:50]} 6. Bxd6 {[%clk 0:02:39]}  cxd6 {[%clk 0:02:51]} 7. Ngf3 {[%clk 0:02:39]}  b6 {[%clk 0:02:50]} 8. e4 {[%clk 0:02:38]}  Bb7 {[%clk 0:02:50]} 9. Bd3 {[%clk 0:02:39]}  d5 {[%clk 0:02:46]} 10. cxd5 {[%clk 0:02:27]}  exd5 {[%clk 0:02:47]} 11. e5 {[%clk 0:02:28]}  Ne4 {[%clk 0:02:47]} 12. Qc2 {[%clk 0:01:55]}  f5 {[%clk 0:02:37]} 13. exf6 {[%clk 0:01:52]}  Nxf6 {[%clk 0:01:52]} 14. O-O {[%clk 0:01:49]}  Nc6 {[%clk 0:01:47]} 15. Rae1 {[%clk 0:01:38]}  Rc8 {[%clk 0:01:40]} 16. Qb1 {[%clk 0:01:38]}  Nb8 {[%clk 0:01:28]} 17. Re5 {[%clk 0:01:22]}  Ba6 {[%clk 0:01:27]} 18. Bxa6 {[%clk 0:01:16]}  Nxa6 {[%clk 0:01:28]} 19. Rfe1 {[%clk 0:01:17]}  Nc7 {[%clk 0:01:27]} 20. h3 {[%clk 0:01:09]}  Ne6 {[%clk 0:01:26]} 21. Nf1 {[%clk 0:01:03]}  Qc7 {[%clk 0:00:59]} 22. Ne3 {[%clk 0:00:55]}  Nxd4 {[%clk 0:00:53]} 23. Nf5 {[%clk 0:00:29]}  Nxf3+ {[%clk 0:00:30]} 24. gxf3 {[%clk 0:00:29]}  Qc2 {[%clk 0:00:30]} 25. Ne7+ {[%clk 0:00:28]}  Kf7 {[%clk 0:00:25]} 26. Nxc8 {[%clk 0:00:29]}  Qxc8 {[%clk 0:00:19]} 27. Re7+ {[%clk 0:00:28]}  Kg8 {[%clk 0:00:19]} 28. Qf5 {[%clk 0:00:27]}  Qc6 {[%clk 0:00:17]} 29. Qg5 {[%clk 0:00:25]}  d4 {[%clk 0:00:17]} 30. Qxg7# {[%clk 0:00:25]} 1-0


[Site "https://www.chess.com"]